fUSD/lending_fUSD_20250120
["ID","MTS","AMOUNT","RATE_DAILY","PERIOD"]
[349625381,1737333043955,-1149.15,0.00020658,2]
[349625382,1737333043965,-500.0,0.00020658,2]
[349625383,1737333043976,-931.22,0.00020658,2]
[349625384,1737333043987,-2911.64,0.00020658,2]
[349625385,1737333043998,-598.08,0.00020658,2]
[349625386,1737333044014,-500.0,0.00020658,2]
[349625387,1737333044025,-500.0,0.00020658,2]
[349625388,1737333044035,-1239.33,0.00020658,2]
[349625389,1737333044046,-500.0,0.00020658,2]
[349625390,1737333044056,-500.0,0.00020658,2]
[349625391,1737333044065,-554.43,0.00020658,2]
[349625392,1737333044075,-150.0,0.00020678,2]
[349625393,1737333044091,-500.0,0.00020758,2]
[349625394,1737333044101,-500.0,0.00020758,2]
[349625395,1737333044111,-301.48,0.00020758,2]
[349625396,1737333044121,-500.0,0.00020758,2]
[349625397,1737333044130,-437.12,0.00020758,2]
[349625398,1737333044140,-500.0,0.00020758,2]
[349625399,1737333044150,-500.0,0.00020758,2]
[349625400,1737333044159,-593.34456267,0.00020758,2]
[349625401,1737333044169,-500.0,0.00020758,2]
[349625402,1737333044179,-500.0,0.00020758,2]
[349625403,1737333044189,-518.32,0.00020758,2]
[349625404,1737333044198,-500.0,0.00020758,2]
[349625405,1737333044208,-500.0,0.00020758,2]
[349625406,1737333044218,-500.0,0.00020758,2]
[349625407,1737333044229,-500.0,0.00020758,2]
[349625408,1737333044239,-500.46113541,0.00020758,2]
[349625409,1737333044251,-500.0,0.00020758,2]
[349625410,1737333044260,-500.0,0.00020758,2]
[349625411,1737333044270,-500.0,0.00020758,2]
[349625412,1737333044279,-500.0,0.00020758,2]
[349625413,1737333044288,-500.0,0.00020758,2]
[349625414,1737333044298,-500.0,0.00020758,2]
[349625415,1737333044308,-500.0,0.00020758,2]
[349625416,1737333044318,-500.0,0.00020758,2]
[349625417,1737333044328,-500.0,0.00020758,2]
[349625418,1737333044343,-500.0,0.00020758,2]
[349625419,1737333044354,-500.0,0.00020758,2]
[349625420,1737333044364,-500.0,0.00020758,2]
[349625421,1737333044373,-500.0,0.00020758,2]
[349625422,1737333044388,-500.0,0.00020758,2]
[349625423,1737333044398,-500.0,0.00020758,2]
[349625424,1737333044409,-500.0,0.00020758,2]
[349625425,1737333044419,-500.0,0.00020758,2]
[349625426,1737333044430,-500.0,0.00020758,2]
[349625427,1737333044440,-500.0,0.00020758,2]
[349625428,1737333044450,-500.0,0.00020758,2]
[349625429,1737333044459,-500.0,0.00020758,2]
[349625430,1737333044471,-500.0,0.00020758,2]
[349625431,1737333044482,-500.0,0.00020758,2]
[349625432,1737333044492,-500.0,0.00020758,2]
[349625433,1737333044503,-500.0,0.00020758,2]
[349625434,1737333044513,-500.0,0.00020758,2]
[349625435,1737333044523,-500.0,0.00020758,2]
[349625436,1737333044532,-500.0,0.00020758,2]
[349625437,1737333044542,-500.0,0.00020758,2]
[349625438,1737333044551,-500.0,0.00020758,2]
[349625439,1737333044561,-500.0,0.00020758,2]
[349625440,1737333044571,-500.0,0.00020758,2]
[349625441,1737333044585,-191.34627932,0.00020758,2]
[349625442,1737333044595,-500.0,0.00020758,2]
[349625443,1737333044604,-500.0,0.00020758,2]
[349625444,1737333044613,-500.0,0.00020758,2]
[349625445,1737333044623,-2619.34,0.00020758,2]
[349625446,1737333044632,-500.0,0.00020758,2]
[349625447,1737333044642,-704.0,0.00020758,2]
[349625448,1737333044652,-471.538641,0.00020758,2]
[349625449,1737333044662,-996.04,0.00020758,2]
[349625450,1737333044672,-500.0,0.00020758,2]
[349625451,1737333044681,-1110.54,0.00020758,2]
[349625452,1737333044691,-500.0,0.00020758,2]
[349625453,1737333044700,-500.0,0.00020758,2]
[349625454,1737333044710,-500.0,0.00020758,2]
[349625455,1737333044720,-500.0,0.00020758,2]
[349625456,1737333044730,-224.75092925,0.00020758,2]
[349625457,1737333044784,-275.24907075,0.00020758,2]
[349625458,1737333044795,-68.17489562,0.00020758,2]
[349625459,1737333044807,-2796.19510438,0.00020758,2]
[349625460,1737333044817,-500.0,0.00020758,2]
[349625461,1737333044828,-491.63,0.00020758,2]
[349625462,1737333044842,-500.0,0.00020758,2]
[349625463,1737333044852,-500.0,0.00020758,2]
[349625464,1737333044862,-500.0,0.00020758,2]
[349625465,1737333044871,-500.0,0.00020758,2]
[349625466,1737333044881,-564.93,0.00020758,2]
[349625467,1737333044890,-1527.81,0.00020758,2]
[349625468,1737333044900,-500.0,0.00020758,2]
[349625469,1737333044909,-1850.11,0.00020758,2]
[349625470,1737333044920,-752.59,0.00020758,2]
[349625471,1737333044931,-641.54,0.00020758,2]
[349625472,1737333044941,-500.0,0.00020758,2]
[349625473,1737333044951,-1237.66,0.00020758,2]
[349625474,1737333044961,-500.0,0.00020758,2]
[349625475,1737333044971,-500.0,0.00020758,2]
[349625476,1737333044982,-660.52,0.00020758,2]
[349625477,1737333044992,-655.32,0.00020758,2]
[349625478,1737333045002,-251.27400779,0.00020758,2]
[349625479,1737333045013,-500.0,0.00020758,2]
[349625480,1737333045024,-613.44,0.00020758,2]
[349625481,1737333045045,-500.0,0.00020758,2]
[349625482,1737333045060,-500.0,0.00020758,2]
[349625483,1737333045070,-640.64570279,0.00020758,2]
[349625484,1737333045086,-500.0,0.00020758,2]
[349625485,1737333045096,-500.0,0.00020758,2]
[349625486,1737333045108,-500.0,0.00020758,2]
[349625487,1737333045119,-500.0,0.00020758,2]
[349625488,1737333045130,-500.0,0.00020758,2]
[349625489,1737333045141,-500.0,0.00020758,2]
[349625490,1737333045153,-500.0,0.00020758,2]
[349625491,1737333045163,-500.0,0.00020758,2]
[349625492,1737333045174,-500.0,0.00020758,2]
[349625493,1737333045184,-500.0,0.00020758,2]
[349625494,1737333045195,-278.85242509,0.00020758,2]
[349625495,1737333045205,-500.0,0.00020758,2]
[349625496,1737333045217,-500.0,0.00020758,2]
[349625497,1737333045228,-500.0,0.00020758,2]
[349625498,1737333045239,-500.0,0.00020758,2]
[349625499,1737333045249,-52.48275995,0.00020758,2]
[349625500,1737333045263,-447.51724005,0.00020758,2]
[349625501,1737333045273,-356.88275995,0.00020758,2]
[349625502,1737333045347,-11.08906103,0.00020758,2]
[349625503,1737333045361,-132.02817902,0.00020758,2]
[349625504,1737333045372,-500.0,0.00020758,2]
[349625505,1737333045384,-353.2713038,0.00020759,2]
[349625506,1737333045394,-500.0,0.00020759,2]
[349625507,1737333045405,-350.86680718,0.00020759,2]
[349625508,1737333045417,-149.13319282,0.00020759,2]
[349625509,1737333045431,-506.92653137,0.00020759,2]
[349625510,1737333045442,-500.0,0.00020759,2]
[349625511,1737333045453,-500.0,0.00020759,2]
[349625512,1737333045464,-221.45496538,0.00020759,2]
[349625513,1737333045475,-186.83779662,0.00020759,2]
[349625514,1737333045486,-202.71895437,0.00020759,2]
[349625515,1737333045497,-503.74049584,0.00020759,2]
[349625516,1737333045508,-398.66470536,0.00020759,2]
[349625517,1737333045518,-500.0,0.00020759,2]
[349625518,1737333045529,-500.53963215,0.00020759,2]
[349625519,1737333045539,-500.0,0.00020759,2]
[349625520,1737333045550,-368.4030658,0.00020759,2]
[349625521,1737333045560,-269.61297544,0.00020759,2]
[349625531,1737333046158,-2414.8469,0.00019895,2]
[349625532,1737333046168,-1198.02656117,0.00020185,2]
[349625533,1737333046219,-1185.26478251,0.00020185,2]
[349625534,1737333046278,-605.0927184,0.00020185,2]
[349625535,1737333046290,-308.53,0.00020185,2]
[349625536,1737333046302,-506.6,0.00020185,2]
[349625537,1737333046452,-669.59716926,0.00020185,2]
[349626081,1737333426971,151.46,0.00010137,2]
[349626084,1737333585217,1099.47,0.00019608,30]
[349626085,1737333733360,200.0,0.0002,30]
[349626087,1737333793554,200.0,0.0002,30]
[349626089,1737333805686,200.0,0.00022,120]
[349626090,1737333809142,200.0,0.00022,120]
[349626092,1737334135663,200.0,0.00022,120]
[349626093,1737334161470,200.0,0.0002,30]
[349626094,1737334172727,200.0,0.0002,30]
[349626095,1737334177862,200.0,0.00022,120]
[349626100,1737334196435,200.0,0.00022,120]
[349626116,1737334232337,-165.25,0.0001537,2]
[349626117,1737334232348,-524.4285833,0.00017088,2]
[349626118,1737334232359,-1068.18,0.00017188,2]
[349626119,1737334232369,-524.42858329,0.00017594,2]
[349626120,1737334232380,-524.42858329,0.000181,2]
[349626121,1737334232390,-2074.0,0.000182,2]
[349626122,1737334232400,-500.0,0.00018779,2]
[349626123,1737334232410,-430.0,0.00018795,2]
[349626124,1737334232420,-169.52,0.0001911,2]
[349626125,1737334232430,-500.0,0.00019164,2]
[349626126,1737334232439,-500.0,0.00019164,2]
[349626127,1737334232449,-296.02172566,0.00019178,7]
[349626128,1737334232459,-250.0,0.0001918,2]
[349626129,1737334232468,-287.0,0.00019206,2]
[349626130,1737334232478,-250.0,0.00019207,2]
[349626131,1737334232493,-23900.0,0.00019207,2]
[349626132,1737334232503,-150.44,0.00019285,2]
[349626133,1737334232512,-4416.74316426,0.00019339,2]
[349626134,1737334232524,-4234.69683574,0.00019339,2]
[349626135,1737334232533,-516.72,0.00019339,2]
[349626136,1737334232543,-9994.55,0.00019339,2]
[349626137,1737334232552,-926.75,0.00019339,2]
[349626138,1737334232561,-1703.58,0.00019339,5]
[349626139,1737334232571,-3782.62,0.00019339,2]
[349626140,1737334232580,-150.99,0.00019339,2]
[349626141,1737334232590,-6296.34,0.00019339,2]
[349626142,1737334232607,-424.5,0.00019367,2]
[349626143,1737334232620,-1068.18,0.00019452,2]
[349626144,1737334232630,-325.93,0.00019656,2]
[349626145,1737334232639,-1000.0,0.00019691,2]
[349626146,1737334232649,-200.0,0.00019726,2]
[349626147,1737334232659,-167.08,0.00019777,2]
[349626148,1737334232668,-186.05,0.00019813,2]
[349626149,1737334232678,-321.84,0.00019815,2]
[349626150,1737334232687,-151.46,0.00019895,2]
[349626151,1737334232697,-1443.361,0.00019895,2]
[349626152,1737334232706,-150.0,0.00019956,2]
[349626153,1737334232716,-150.0,0.00019978,2]
[349626154,1737334232725,-434.97,0.00019978,2]
[349626155,1737334232739,-200.0,0.0002,2]
[349626156,1737334232751,-200.0,0.0002,3]
[349626157,1737334232760,-200.0,0.0002,4]
[349626158,1737334232769,-200.0,0.0002,4]
[349626159,1737334232779,-200.0,0.0002,3]
[349626160,1737334232790,-200.0,0.0002,2]
[349626161,1737334232799,-200.0,0.0002,2]
[349626162,1737334232809,-200.0,0.0002,3]
[349626163,1737334232819,-200.0,0.0002,4]
[349626164,1737334232829,-200.0,0.0002,14]
[349626165,1737334232839,-200.0,0.0002,15]
[349626166,1737334232848,-200.0,0.000201,2]
[349626167,1737334232857,-200.0,0.000201,3]
[349626168,1737334232867,-200.0,0.000201,4]
[349626170,1737334232876,-200.0,0.000201,2]
[349626172,1737334232886,-200.0,0.000201,3]
[349626174,1737334232895,-200.0,0.000201,4]
[349626176,1737334232906,-50.72166866,0.00020185,2]
[349626178,1737334232915,-460.0,0.00020202,2]
[349626180,1737334232925,-500.0,0.0002026,2]
[349626182,1737334232934,-31540.5761,0.00020284,2]
[349626184,1737334232943,-349.0843956,0.00020284,2]
[349626186,1737334232956,-490.62,0.00020284,2]
[349626189,1737334232967,-718.0,0.00020284,2]
[349626191,1737334232978,-7839.59813395,0.00020284,2]
[349626193,1737334232994,-688.68723581,0.00020284,2]
[349626195,1737334233008,-995.8,0.00020284,2]
[349626197,1737334233021,-586.83695503,0.00020284,2]
[349626201,1737334233035,-11605.0,0.00020284,2]
[349626203,1737334233058,-12997.90719082,0.00020284,2]
[349626204,1737334233070,-6746.13999986,0.00020284,2]
[349626205,1737334233084,-11075.60113289,0.00020284,2]
[349626213,1737334238252,-200.0,0.0002,16]
[349626214,1737334238261,-3066.4362,0.00020284,2]
[349626215,1737334238271,-250.0,0.00020308,2]
[349626216,1737334238280,-424.5,0.00020335,2]
[349626217,1737334238291,-150.0,0.00020356,2]
[349626218,1737334238300,-150.0,0.00020356,2]
[349626219,1737334238310,-450.97,0.00020374,2]
[349626220,1737334238320,-500.0,0.00020383,2]
[349626221,1737334238330,-500.0,0.00020383,2]
[349626222,1737334238340,-500.0,0.00020383,2]
[349626223,1737334238349,-505.728841,0.00020383,2]
[349626224,1737334238359,-500.0,0.00020383,2]
[349626225,1737334238369,-500.0,0.00020383,2]
[349626226,1737334238378,-500.0,0.00020383,2]
[349626227,1737334238388,-500.0,0.00020383,2]
[349626228,1737334238398,-500.0,0.00020383,2]
[349626229,1737334238407,-500.0,0.00020383,2]
[349626230,1737334238416,-500.0,0.00020383,2]
[349626231,1737334238425,-500.0,0.00020383,2]
[349626232,1737334238435,-500.0,0.00020383,2]
[349626233,1737334238445,-500.0,0.00020383,2]
[349626234,1737334238455,-500.0,0.00020383,2]
[349626235,1737334238464,-500.0,0.00020383,2]
[349626236,1737334238474,-500.0,0.00020383,2]
[349626237,1737334238484,-274.42072923,0.00020383,2]
[349626238,1737334238498,-306.85610938,0.00020383,2]
[349626239,1737334238507,-500.0,0.00020383,2]
[349626240,1737334238517,-500.0,0.00020383,2]
[349626241,1737334238527,-500.0,0.00020383,2]
[349626242,1737334238536,-500.0,0.00020383,2]
[349626243,1737334238546,-500.0,0.00020383,2]
[349626244,1737334238555,-500.0,0.00020383,2]
[349626245,1737334238564,-500.0,0.00020383,2]
[349626246,1737334238574,-182.81647299,0.00020383,2]
[349626247,1737334238586,-500.0,0.00020383,2]
[349626248,1737334238596,-500.0,0.00020383,2]
[349626249,1737334238605,-500.0,0.00020383,2]
[349626250,1737334238614,-500.0,0.00020383,2]
[349626251,1737334238624,-500.0,0.00020383,2]
[349626253,1737334238634,-500.0,0.00020383,2]
[349626255,1737334238643,-500.0,0.00020383,2]
[349626257,1737334238654,-500.0,0.00020383,2]
[349626259,1737334238664,-500.0,0.00020383,2]
[349626261,1737334238674,-381.47027022,0.00020383,2]
[349626263,1737334238683,-500.0,0.00020383,2]
[349626265,1737334238693,-500.0,0.00020383,2]
[349626267,1737334238703,-500.0,0.00020383,2]
[349626269,1737334238712,-500.0,0.00020383,2]
[349626271,1737334238722,-500.0,0.00020383,2]
[349626273,1737334238732,-500.0,0.00020383,2]
[349626275,1737334238748,-455.60714325,0.00020383,2]
[349626277,1737334238761,-44.39285675,0.00020383,2]
[349626279,1737334238772,-500.0,0.00020383,2]
[349626281,1737334238782,-500.0,0.00020383,2]
[349626282,1737334238796,-500.0,0.00020383,2]
[349626283,1737334238806,-500.0,0.00020383,2]
[349626284,1737334238816,-500.0,0.00020383,2]
[349626285,1737334238827,-500.0,0.00020383,2]
[349626286,1737334238836,-500.0,0.00020383,2]
[349626287,1737334238846,-500.0,0.00020383,2]
[349626288,1737334238855,-500.0,0.00020384,2]
[349626289,1737334238866,-500.0,0.00020384,2]
[349626290,1737334238876,-500.0,0.00020384,2]
[349626291,1737334238886,-503.33293654,0.00020384,2]
[349626292,1737334238896,-500.0,0.00020384,2]
[349626293,1737334238906,-500.0,0.00020384,2]
[349626294,1737334238915,-500.0,0.00020384,2]
[349626295,1737334238925,-500.0,0.00020384,2]
[349626297,1737334238935,-511.64512988,0.00020384,2]
[349626298,1737334238945,-500.0,0.00020384,2]
[349626300,1737334238955,-500.0,0.00020384,2]
[349626302,1737334238965,-501.73097786,0.00020384,2]
[349626304,1737334238975,-500.0,0.00020384,2]
[349626306,1737334238985,-449.8988192,0.00020384,2]
[349626309,1737334239003,-50.1011808,0.00020384,2]
[349626311,1737334239012,-511.76872106,0.00020384,2]
[349626313,1737334239021,-500.0,0.00020384,2]
[349626315,1737334239030,-500.0,0.00020384,2]
[349626316,1737334239040,-586.94550881,0.00020384,2]
[349626319,1737334239050,-500.0,0.00020384,2]
[349626321,1737334239060,-500.0,0.00020384,2]
[349626323,1737334239070,-500.0,0.00020384,2]
[349626325,1737334239080,-500.0,0.00020384,2]
[349626327,1737334239090,-500.0,0.00020384,2]
[349626329,1737334239099,-500.0,0.00020384,2]
[349626331,1737334239108,-500.0,0.00020384,2]
[349626333,1737334239118,-500.0,0.00020384,2]
[349626335,1737334239127,-500.0,0.00020384,2]
[349626337,1737334239136,-500.0,0.00020384,2]
[349626339,1737334239145,-500.0,0.00020384,2]
[349626341,1737334239154,-186.21186872,0.00020384,2]
[349626343,1737334239163,-200.0,0.00020384,2]
[349626344,1737334239172,-500.0,0.00020384,2]
[349626346,1737334239181,-502.15532186,0.00020384,2]
[349626349,1737334239191,-500.0,0.00020384,2]
[349626350,1737334239201,-500.0,0.00020384,2]
[349626352,1737334239211,-500.0,0.00020384,2]
[349626354,1737334239220,-500.0,0.00020384,2]
[349626356,1737334239230,-581.22117344,0.00020384,2]
[349626358,1737334239240,-500.0,0.00020384,2]
[349626360,1737334239255,-500.0,0.00020384,2]
[349626362,1737334239264,-500.0,0.00020384,2]
[349626364,1737334239274,-202.40737307,0.00020384,2]
[349626366,1737334239283,-11653.2937,0.00020494,2]
[349626368,1737334239293,-4602.0452,0.00020558,2]
[349626370,1737334239303,-669.5971,0.00020559,2]
[349626372,1737334239313,-450.97,0.00020648,2]
[349626374,1737334239323,-500.0,0.00020657,2]
[349626376,1737334239332,-500.0,0.00020657,2]
[349626378,1737334239341,-504.78802334,0.00020657,2]
[349626380,1737334239351,-500.0,0.00020657,2]
[349626382,1737334239360,-500.0,0.00020657,2]
[349626384,1737334239370,-504.44544008,0.00020657,2]
[349626386,1737334239379,-500.0,0.00020657,2]
[349626388,1737334239390,-500.0,0.00020657,2]
[349626390,1737334239400,-489.34553497,0.00020657,2]
[349626392,1737334239410,-500.0,0.00020657,2]
[349626394,1737334239420,-567.92339943,0.00020657,2]
[349626396,1737334239430,-500.0,0.00020657,2]
[349626398,1737334239440,-500.0,0.00020657,2]
[349626400,1737334239450,-500.0,0.00020657,2]
[349626402,1737334239459,-500.0,0.00020657,2]
[349626404,1737334239469,-500.0,0.00020657,2]
[349626406,1737334239479,-500.0,0.00020657,2]
[349626408,1737334239489,-500.0,0.00020658,2]
[349626410,1737334239504,-500.0,0.00020658,2]
[349626412,1737334239514,-500.0,0.00020658,2]
[349626414,1737334239524,-500.0,0.00020658,2]
[349626416,1737334239533,-500.0,0.00020658,2]
[349626418,1737334239543,-500.0,0.00020658,2]
[349626420,1737334239552,-500.0,0.00020658,2]
[349626422,1737334239562,-500.0,0.00020658,2]
[349626424,1737334239572,-500.92249405,0.00020658,2]
[349626426,1737334239581,-611.34729709,0.00020658,2]
[349626429,1737334239594,-500.0,0.00020658,2]
[349626431,1737334239607,-502.79418284,0.00020658,2]
[349626434,1737334239621,-500.0,0.00020658,2]
[349626436,1737334239635,-500.0,0.00020658,2]
[349626438,1737334239649,-507.13482335,0.00020658,2]
[349626441,1737334239660,-500.0,0.00020658,2]
[349626443,1737334239671,-500.0,0.00020658,2]
[349626445,1737334239684,-500.0,0.00020658,2]
[349626447,1737334239696,-500.0,0.00020658,2]
[349626450,1737334239709,-500.0,0.00020658,2]
[349626452,1737334239722,-416.42111827,0.00020658,2]
[349626454,1737334239734,-500.0,0.00020658,2]
[349626457,1737334239754,-500.0,0.00020658,2]
[349626459,1737334239767,-500.0,0.00020658,2]
[349626461,1737334239779,-500.0,0.00020658,2]
[349626464,1737334239795,-500.0,0.00020658,2]
[349626466,1737334239808,-495.36,0.00020658,2]
[349626468,1737334239820,-500.0,0.00020658,2]
[349626470,1737334239833,-500.0,0.00020658,2]
[349626473,1737334239845,-500.0,0.00020658,2]
[349626475,1737334239857,-420.14,0.00020658,2]
[349626477,1737334239867,-500.0,0.00020658,2]
[349626479,1737334239880,-500.0,0.00020658,2]
[349626481,1737334239894,-500.0,0.00020658,2]
[349626484,1737334239908,-500.0,0.00020658,2]
[349626486,1737334239921,-246.7636636,0.00020658,2]
[349626488,1737334239933,-500.0,0.00020658,2]
[349626491,1737334239946,-500.0,0.00020658,2]
[349626493,1737334239958,-318.39679173,0.00020658,2]
[349626495,1737334239971,-500.0,0.00020658,2]
[349626497,1737334239984,-501.25007264,0.00020658,2]
[349626500,1737334240002,-453.13394462,0.00020658,2]
[349626502,1737334240016,-500.0,0.00020658,2]
[349626505,1737334240029,-500.0,0.00020658,2]
[349626508,1737334240041,-204.90952584,0.00020658,2]
[349626510,1737334240054,-500.0,0.00020658,2]
[349626513,1737334240066,-500.0,0.00020658,2]
[349626515,1737334240078,-500.0,0.00020658,2]
[349626517,1737334240090,-500.0,0.00020658,2]
[349626520,1737334240103,-500.0,0.00020658,2]
[349626522,1737334240116,-500.0,0.00020658,2]
[349626524,1737334240129,-500.0,0.00020658,2]
[349626526,1737334240140,-500.0,0.00020658,2]
[349626529,1737334240153,-1131.100704,0.00020658,2]
[349626531,1737334240166,-500.0,0.00020658,2]
[349626534,1737334240179,-500.0,0.00020658,2]
[349626536,1737334240193,-500.0,0.00020658,2]
[349626538,1737334240206,-473.55882306,0.00020658,2]
[349626541,1737334240223,-26.44117694,0.00020658,2]
[349626544,1737334240236,-500.0,0.00020658,2]
[349626546,1737334240252,-500.0,0.00020658,2]
[349626548,1737334240263,-73.20311628,0.00020658,2]
[349626551,1737334240276,-426.79688372,0.00020658,2]
[349626555,1737334240287,-866.22,0.00020658,2]
[349626557,1737334240298,-2401.06,0.00020658,2]
[349626559,1737334240312,-500.0,0.00020658,2]
[349626562,1737334240327,-500.0,0.00020658,2]
[349626564,1737334240339,-500.0,0.00020658,2]
[349626566,1737334240350,-500.0,0.00020658,2]
[349626568,1737334240361,-500.0,0.00020658,2]
[349626570,1737334240371,-500.0,0.00020658,2]
[349626573,1737334240383,-451.036961,0.00020658,2]
[349626575,1737334240395,-500.0,0.00020658,2]
[349626577,1737334240408,-645.33,0.00020658,2]
[349626579,1737334240421,-368.2108122,0.00020658,2]
[349626582,1737334240434,-162.59798,0.00020658,2]
[349626584,1737334240447,-500.0,0.00020658,2]
[349626586,1737334240459,-159.550045,0.00020658,2]
[349626588,1737334240471,-500.0,0.00020658,2]
[349626591,1737334240482,-500.0,0.00020658,2]
[349626593,1737334240498,-500.0,0.00020658,2]
[349626595,1737334240509,-500.0,0.00020658,2]
[349626597,1737334240521,-1018.0,0.00020658,2]
[349626599,1737334240535,-500.0,0.00020658,2]
[349626602,1737334240547,-500.0,0.00020658,2]
[349626604,1737334240560,-500.0,0.00020658,2]
[349626606,1737334240571,-500.0,0.00020658,2]
[349626608,1737334240583,-500.0,0.00020658,2]
[349626610,1737334240596,-500.0,0.00020658,2]
[349626613,1737334240608,-500.0,0.00020658,2]
[349626615,1737334240620,-500.0,0.00020658,2]
[349626617,1737334240631,-500.0,0.00020658,2]
[349626619,1737334240642,-908.08391682,0.00020658,2]
[349626622,1737334240657,-1717.59608318,0.00020658,2]
[349626624,1737334240668,-500.0,0.00020658,2]
[349626626,1737334240679,-263.03596852,0.00020658,2]
[349626629,1737334240693,-236.96403148,0.00020658,2]
[349626631,1737334240706,-506.04401327,0.00020658,2]
[349626633,1737334240718,-500.0,0.00020658,2]
[349626635,1737334240729,-500.0,0.00020658,2]
[349626637,1737334240742,-500.0,0.00020658,2]
[349626640,1737334240759,-588.08,0.00020658,2]
[349626642,1737334240770,-42.77277007,0.00020658,2]
[349626645,1737334240793,-457.22722993,0.00020658,2]
[349626647,1737334240806,-266.37277007,0.00020658,2]
[349626650,1737334240820,-1000.2197202,0.00020658,2]
[349626652,1737334240835,-429.33750973,0.00020658,2]
[349626654,1737334240846,-59.12191142,0.00020658,2]
[349626657,1737334240860,-440.87808858,0.00020658,2]
[349626659,1737334240872,-500.0,0.00020658,2]
[349626661,1737334240884,-500.0,0.00020658,2]
[349626663,1737334240896,-500.0,0.00020658,2]
[349626666,1737334240907,-500.0,0.00020658,2]
[349626668,1737334240919,-500.0,0.00020658,2]
[349626670,1737334240931,-500.0,0.00020658,2]
[349626672,1737334240942,-500.0,0.00020658,2]
[349626674,1737334240954,-500.0,0.00020658,2]
[349626677,1737334240966,-500.0,0.00020658,2]
[349626679,1737334240979,-500.0,0.00020658,2]
[349626681,1737334240991,-500.0,0.00020658,2]
[349626684,1737334241007,-605.48,0.00020658,2]
[349626686,1737334241019,-322.48757551,0.00020658,2]
[349626688,1737334241031,-264.11617374,0.00020658,2]
[349626690,1737334241043,-500.0,0.00020658,2]
[349626693,1737334241056,-500.0,0.00020658,2]
[349626695,1737334241068,-500.0,0.00020658,2]
[349626697,1737334241079,-245.05171988,0.00020658,2]
[349626699,1737334241091,-500.0,0.00020658,2]
[349626701,1737334241102,-500.0,0.00020658,2]
[349626704,1737334241114,-477.69,0.00020658,2]
[349626706,1737334241126,-500.0,0.00020658,2]
[349626708,1737334241137,-500.0,0.00020658,2]
[349626710,1737334241149,-500.0,0.00020658,2]
[349626712,1737334241160,-500.0,0.00020658,2]
[349626714,1737334241172,-500.0,0.00020658,2]
[349626717,1737334241184,-500.0,0.00020658,2]
[349626719,1737334241195,-500.0,0.00020658,2]
[349626721,1737334241207,-450.97,0.00020747,2]
[349626723,1737334241219,-500.0,0.00020756,2]
[349626725,1737334241231,-2193.52,0.00020756,2]
[349626726,1737334241248,-824.32,0.00020756,2]
[349626727,1737334241261,-500.0,0.00020756,2]
[349626728,1737334241273,-500.0,0.00020756,2]
[349626729,1737334241287,-500.0,0.00020756,2]
[349626730,1737334241299,-692.78,0.00020756,2]
[349626731,1737334241311,-689.65,0.00020756,2]